bitfinex-derivatives/quotes_ETHF0:USTF0_20250701
["timestamp","ask_amount","ask_price","bid_price","bid_amount"]
[1751388351844,0.82378,2427.0,2426.9,4.52081345]
[1751388352043,0.82384,2426.8,2426.7,4.10379768]
[1751388352237,0.82384,2426.9,2426.8,0.82381]
[1751388352835,0.82384,2426.9,2426.8,3.85825345]
[1751388353234,0.82384,2426.8,2426.7,0.82388]
[1751388354641,0.82388,2426.7,2426.6,3.85832345]
[1751388356839,0.82388,2426.7,2426.6,0.82391]
[1751388357539,0.82387,2426.8,2426.7,0.82384]
[1751388359940,0.82388,2426.7,2426.6,5.18001345]
[1751388361440,0.82401,2426.3,2426.2,0.82403]
[1751388361641,0.82405,2426.2,2426.1,1.48606]
[1751388361841,0.82405,2426.2,2425.9,0.82415]
[1751388361842,0.82411,2426.0,2425.9,0.82415]
[1751388362242,0.82411,2426.0,2425.9,3.85859345]
[1751388362541,0.82415,2425.9,2425.8,13.15006]
[1751388362736,0.82415,2425.9,2425.8,12.3259]
[1751388362937,0.82415,2425.9,2425.8,13.15008]
[1751388363237,0.82427,2425.6,2425.5,0.82426]
[1751388363747,0.82423,2425.7,2425.6,0.82423]
[1751388364035,0.82418,2425.8,2425.7,0.82422]
[1751388364241,0.82418,2425.8,2425.7,3.85866345]
[1751388364545,0.82417,2425.9,2425.8,0.82418]
[1751388364737,1.3783,2426.1,2425.8,0.82418]
[1751388365042,0.82415,2425.9,2425.8,0.82418]
[1751388367144,0.82421,2425.8,2425.7,0.8242]
[1751388367641,0.82424,2425.7,2425.6,0.82422]
[1751388367840,0.82421,2425.8,2425.7,0.8242]
[1751388368142,0.82424,2425.7,2425.6,0.82423]
[1751388368343,3.85864345,2425.8,2425.7,0.82422]
[1751388371534,0.8242,2425.8,2425.7,0.82422]
[1751388373139,3.03444345,2425.8,2425.5,0.6568]
[1751388373340,0.82425,2425.6,2425.5,1.48107]
[1751388374143,0.82425,2425.6,2425.5,0.6568]
[1751388374342,0.82425,2425.6,2425.3,1.3586]
[1751388374343,0.82428,2425.5,2425.4,0.82431]
[1751388375248,3.70424345,2425.7,2425.3,2.0649]
[1751388375249,0.82432,2425.4,2425.3,2.88921]
[1751388375540,3.03444345,2425.5,2424.9,5.09565345]
[1751388375747,0.82437,2425.3,2425.2,0.82436]
[1751388376438,0.82441,2425.2,2425.1,0.8244]
[1751388376842,0.82438,2425.3,2425.2,0.82435]
[1751388377449,0.82441,2425.2,2425.1,0.82439]
[1751388377743,0.82438,2425.3,2425.2,0.82435]
[1751388378946,0.82442,2425.2,2425.1,0.82441]
[1751388379247,0.82459,2424.7,2424.6,0.82458]
[1751388379447,3.85903345,2424.7,2424.6,0.82458]
[1751388379651,0.82459,2424.7,2424.6,0.82458]
[1751388379853,3.03444345,2424.9,2424.7,0.82454]
[1751388379854,0.82455,2424.8,2424.7,0.82454]
[1751388380349,0.82455,2424.8,2424.4,4.12743]
[1751388380350,0.82459,2424.7,2424.6,0.82458]
[1751388380948,3.03444345,2424.7,2423.9,14.07571479]
[1751388381252,3.03444345,2425.0,2424.3,5.09616345]
[1751388381454,0.82453,2424.8,2424.7,0.82454]
[1751388381647,0.82453,2424.8,2424.6,0.82458]
[1751388381648,0.82458,2424.7,2424.6,0.82458]
[1751388381955,3.85899345,2424.8,2424.7,0.82456]
[1751388382148,0.7282,2424.9,2424.2,2.06182]
[1751388382353,5.23268345,2424.8,2424.3,2.06174]
[1751388382557,5.23268345,2424.8,2424.3,3.46534]
[1751388382857,0.82456,2424.7,2424.6,0.82456]
[1751388383252,4.40814345,2424.8,2424.7,0.82456]
[1751388383253,5.23269345,2424.8,2424.7,0.82456]
[1751388383759,0.82461,2424.6,2424.5,0.82459]
[1751388383963,3.03444345,2424.6,2424.0,1.4036]
[1751388384155,4.56239345,2424.5,2424.4,0.82466]
[1751388384356,4.56239345,2424.5,2424.2,0.82469]
[1751388384357,0.82471,2424.3,2424.2,0.82469]
[1751388384657,3.85915345,2424.3,2424.2,0.82469]
[1751388385053,3.03444345,2424.3,2424.2,0.82469]
[1751388385255,3.85913345,2424.3,2424.2,0.82469]
[1751388385755,3.03444345,2424.3,2424.2,0.82469]
[1751388386361,4.56239345,2424.5,2424.4,0.82466]
[1751388387160,0.7033,2424.5,2424.4,0.82466]
[1751388387355,1.52792,2424.5,2424.4,0.82466]
[1751388387556,0.7033,2424.5,2424.4,0.82466]
[1751388387957,3.03444345,2424.7,2424.6,0.82459]
[1751388388261,12.3555,2425.0,2424.6,3.03444345]
[1751388388456,0.82451,2424.9,2424.8,0.82449]
[1751388388662,13.89967,2425.0,2424.9,0.82449]
[1751388388865,0.82452,2424.9,2424.8,0.8245]
[1751388389067,0.82456,2424.8,2424.7,0.82453]
[1751388389262,0.82459,2424.7,2424.6,0.82455]
[1751388389871,3.03444345,2424.9,2424.5,1.3669]
[1751388390168,3.85896345,2424.9,2424.8,0.82452]
[1751388390674,0.82455,2424.8,2424.7,0.82452]
[1751388391460,1.77409173,2424.8,2424.7,0.82452]
[1751388391966,0.94954173,2424.8,2424.2,2.06182]
[1751388392267,3.85908345,2424.5,2424.4,0.82463]
[1751388392867,3.03444345,2424.5,2424.4,0.82463]
[1751388393062,0.82461,2424.6,2424.5,0.82462]
[1751388393268,0.82466,2424.5,2424.4,0.82466]
[1751388393578,0.82466,2424.4,2424.3,1.54957]
[1751388393870,0.82466,2424.4,2424.3,1.54959]
[1751388394375,0.82466,2424.4,2424.3,0.7249]
[1751388394771,0.82466,2424.4,2424.3,1.54959]
[1751388395775,12.45659,2424.7,2424.6,0.82455]
[1751388395976,13.40651542,2424.7,2424.6,0.82455]
[1751388396272,13.40651542,2424.7,2424.5,0.8246]
[1751388396273,0.82462,2424.6,2424.5,0.8246]
[1751388396973,0.82462,2424.6,2424.4,0.82464]
[1751388396974,0.82462,2424.5,2424.4,0.82464]
[1751388397170,0.82466,2424.4,2424.3,1.54955]
[1751388397370,3.85910345,2424.4,2424.3,1.54955]
[1751388400684,0.82463,2424.6,2424.5,0.8246]
[1751388401278,0.82466,2424.5,2424.4,0.82463]
[1751388401478,0.82466,2424.4,2424.3,1.54957]
[1751388402682,3.85909345,2424.5,2424.4,0.82466]
[1751388404373,4.79828559,2424.5,2424.4,0.82466]
[1751388404679,0.82466,2424.4,2424.3,0.7249]
[1751388404978,1.51996,2424.4,2424.3,0.7249]
[1751388405277,1.51996,2424.4,2424.1,1.50364]
[1751388405278,0.82473,2424.2,2424.1,1.50364]
[1751388405473,3.85917345,2424.2,2424.1,0.6789]
[1751388405880,3.03444345,2424.2,2423.9,2.98059]
[1751388406075,3.85923345,2424.0,2423.9,2.98059]
[1751388406475,0.82479,2424.1,2424.0,0.82476]
[1751388407578,0.82479,2424.0,2423.9,2.9806]
[1751388408176,0.82479,2424.1,2424.0,0.82476]
[1751388408381,1.76587868,2424.1,2424.0,0.82476]
[1751388409680,0.94108868,2424.1,2424.0,0.82476]
[1751388410472,0.94108868,2424.1,2424.0,2.13696]
[1751388410881,0.94108868,2424.1,2424.0,5.17140345]
[1751388411078,37.59065,2424.5,2424.1,2.06189]
[1751388411278,0.94116321,2424.4,2424.3,0.82469]
[1751388411678,4.80026666,2424.4,2424.3,1.48219]
[1751388411879,4.80026666,2424.4,2424.3,0.6575]
[1751388412079,4.80026666,2424.4,2424.3,1.48219]
[1751388412477,4.80026666,2424.4,2424.3,0.6575]
[1751388413077,4.80026666,2424.4,2424.3,1.48219]
[1751388413577,4.80026666,2424.4,2424.3,0.6575]
[1751388413772,4.80026666,2424.4,2424.2,1.48971]
[1751388413980,0.94116321,2424.3,2424.2,1.48971]
[1751388417086,1.76585321,2424.3,2424.2,0.665]
[1751388417385,1.76585321,2424.3,2424.1,1.52923]
[1751388417386,0.82473,2424.2,2424.1,0.7045]
[1751388417586,4.80033666,2424.2,2424.1,0.7045]
[1751388418084,4.80033666,2424.2,2424.1,1.52926]
[1751388418285,4.80033666,2424.2,2424.1,0.7045]
[1751388418585,3.97560666,2424.2,2423.9,0.661]
[1751388418781,3.85923345,2424.0,2423.9,0.661]
[1751388419477,0.82483,2423.9,2423.8,0.6705]
[1751388419984,1.48353,2423.9,2423.8,0.6705]
[1751388420290,0.82483,2423.9,2423.8,0.6705]
[1751388422292,0.82483,2423.9,2423.8,1.49536]
[1751388422591,0.82483,2423.9,2423.8,0.6705]
[1751388425890,1.76701772,2423.9,2423.8,0.6705]
[1751388427484,0.82495,2423.6,2423.5,0.82496]
[1751388427684,3.85939345,2423.6,2423.5,0.7108]
[1751388427890,0.82496,2423.5,2423.4,0.6722]
[1751388428094,0.825,2423.4,2423.3,0.7108]
[1751388428393,0.82507,2423.2,2423.0,3.94702479]
[1751388428586,3.03444345,2423.1,2423.0,1.53594]
[1751388428988,3.03444345,2423.1,2423.0,2.98584]
[1751388430590,3.03444345,2423.1,2423.0,0.7108]
[1751388430892,3.03444345,2423.1,2422.9,0.82516]
[1751388431196,3.03444345,2423.1,2422.8,0.82518]
[1751388431197,3.85954345,2423.1,2422.8,0.82518]
[1751388431685,0.8252,2422.8,2422.7,1.3427]
[1751388431885,3.85963345,2422.9,2422.7,1.3427]
[1751388432193,3.03444345,2422.9,2422.8,0.8252]
[1751388432587,3.03444345,2422.9,2422.7,2.16791]
[1751388432888,13.20495,2423.0,2422.8,0.8252]
[1751388433095,3.85961345,2422.9,2422.7,2.16791]
[1751388433289,3.03444345,2422.9,2422.7,2.16791]
[1751388433489,3.03444345,2422.9,2422.8,0.8252]
[1751388433789,3.85960345,2423.0,2422.8,0.8252]
[1751388433991,1.52631,2423.1,2422.9,0.82515]
[1751388434195,1.52631,2423.1,2422.7,2.0349]
[1751388434196,3.03444345,2423.1,2422.7,2.0349]
[1751388434398,3.03444345,2422.9,2422.8,0.8252]
[1751388434897,3.03444345,2422.9,2422.7,0.6922]
[1751388435096,0.8252,2422.8,2422.7,0.6922]
[1751388435297,0.82524,2422.7,2422.6,0.6716]
[1751388435497,4.55058345,2422.7,2422.6,0.6716]
[1751388435886,3.03444345,2422.9,2422.7,0.82522]
[1751388436087,12.3619,2423.1,2423.0,0.82514]
[1751388436291,71.098,2423.3,2423.2,0.82507]
[1751388436696,72.03345045,2423.3,2423.2,0.82507]
[1751388436895,60.36244358,2423.3,2423.2,0.82507]
[1751388437193,2.06231,2423.7,2423.1,2.06272]
[1751388437194,0.82497,2423.5,2423.1,2.06272]
[1751388437401,3.97166372,2423.4,2423.3,0.82501]
[1751388438396,3.75714345,2423.8,2423.6,0.82491]
[1751388438597,12.60954291,2423.7,2423.6,0.82491]
[1751388439098,0.82495,2423.6,2423.4,2.97359]
[1751388439298,3.85939345,2423.6,2423.4,2.97359]
[1751388439897,3.03444345,2423.6,2423.4,2.1486]
[1751388440093,3.03444345,2423.6,2423.1,0.82507]
[1751388440299,3.03444345,2423.2,2423.0,0.6895]
[1751388440499,2.06244,2423.5,2423.0,0.6895]
[1751388440500,3.85954345,2423.1,2423.0,0.6895]
[1751388440898,3.03444345,2423.1,2423.0,1.51464]
[1751388441403,3.03444345,2423.3,2423.2,0.82507]
[1751388442102,0.6762,2423.7,2423.4,0.825]
[1751388442103,3.85939345,2423.6,2423.4,0.825]
[1751388442499,12.50189,2423.8,2423.6,0.82492]
[1751388442697,15.53631345,2423.8,2423.5,0.7164]
[1751388442900,15.53631345,2423.8,2423.6,0.82492]
[1751388443299,0.82491,2423.7,2423.5,1.54134]
[1751388443494,14.71144345,2423.8,2423.6,0.82493]
[1751388443495,15.53632345,2423.8,2423.6,0.82493]
[1751388443697,14.71144345,2423.8,2423.6,0.82493]
[1751388443898,0.82491,2423.7,2423.6,0.82493]
[1751388444103,15.53633345,2423.8,2423.5,1.4058]
[1751388444402,15.53633345,2423.8,2423.6,0.82491]
[1751388444803,14.71144345,2423.8,2423.7,0.8249]
[1751388445004,15.53630345,2423.8,2423.7,0.8249]
[1751388445201,15.53632345,2423.8,2423.6,2.14781]
[1751388445603,14.71144345,2423.8,2423.7,0.8249]
[1751388445804,12.50186,2423.8,2423.6,2.14781]
[1751388445999,11.677,2423.8,2423.7,0.8249]
[1751388446408,12.50186,2423.8,2423.7,0.8249]
[1751388446707,37.63083,2423.9,2423.8,0.82486]
[1751388447008,11.676,2424.0,2423.8,0.82486]
[1751388447202,0.82485,2423.9,2423.7,0.82488]
[1751388447601,0.82485,2423.9,2423.7,0.82487]
[1751388447807,0.82485,2423.9,2423.6,1.3229]
[1751388448106,0.82485,2423.9,2423.7,0.82487]
[1751388448300,0.82485,2423.9,2423.6,1.3229]
[1751388448505,0.82485,2423.9,2423.7,0.82488]
[1751388448706,0.82486,2423.8,2423.7,0.82488]
[1751388448908,0.82486,2423.9,2423.8,0.82486]
[1751388449107,0.94203102,2423.9,2423.8,0.82486]
[1751388450411,25.125,2424.0,2423.9,0.82483]
[1751388450709,26.06721222,2424.0,2423.9,0.82483]
[1751388450910,0.94221222,2424.0,2423.9,0.82483]
[1751388451408,26.06121222,2424.0,2423.9,0.82483]
[1751388451612,25.119,2424.0,2423.9,0.82483]
[1751388451910,0.7036,2424.1,2424.0,0.8248]
[1751388452218,38.43884787,2424.1,2424.0,0.8248]
[1751388452412,0.94224787,2424.1,2424.0,0.8248]
[1751388452812,0.82471,2424.3,2424.2,0.82473]
[1751388452813,12.49971,2424.3,2424.2,0.82473]
[1751388453010,38.56163242,2424.3,2424.2,0.82473]
[1751388453513,13.44163242,2424.3,2424.2,0.82473]
[1751388454010,26.06092242,2424.3,2424.2,0.82473]
[1751388454807,0.94192242,2424.3,2424.2,0.82473]
[1751388455005,26.05892242,2424.3,2424.2,0.82473]
[1751388455306,0.82473,2424.2,2424.1,1.51166]
[1751388455609,25.94172,2424.3,2424.2,0.82473]
[1751388455906,13.16648,2424.4,2424.3,0.82469]
[1751388456108,39.22205734,2424.4,2424.3,0.82469]
[1751388456315,0.82471,2424.3,2424.2,0.82471]
[1751388456506,1.83406631,2424.3,2424.2,0.82471]
[1751388456908,1.00935631,2424.3,2424.2,0.82471]
[1751388457103,1.83404631,2424.3,2424.2,0.82471]
[1751388457713,26.11735631,2424.3,2424.2,0.82471]
[1751388458112,26.94204631,2424.3,2424.2,0.82471]
[1751388458312,26.11735631,2424.3,2424.2,0.82471]
[1751388459013,26.94204631,2424.3,2424.2,0.82471]
[1751388459412,25.93269,2424.3,2424.2,0.82471]
[1751388459614,25.93269,2424.3,2424.2,0.82473]
[1751388460215,25.108,2424.3,2424.2,0.82473]
[1751388460515,25.93269,2424.3,2424.2,0.82473]
[1751388461017,25.108,2424.3,2424.2,0.82473]
[1751388461214,25.93269,2424.3,2424.2,0.82473]
[1751388461405,25.108,2424.3,2424.2,0.82473]
[1751388461808,59.424,2424.6,2424.5,0.82463]
[1751388462012,26.10614043,2424.6,2424.5,0.82463]
[1751388462217,25.92259,2424.6,2424.5,0.82463]
[1751388462612,0.82458,2424.7,2424.6,0.82459]
[1751388462814,1.00791073,2424.7,2424.6,0.82459]
[1751388463118,0.82445,2425.1,2424.7,2.0614]
[1751388463421,0.6615,2425.3,2425.2,0.82439]
[1751388463719,1.83183347,2425.3,2425.2,0.82439]
[1751388463914,0.8244,2425.2,2425.1,0.82441]
[1751388464115,1.00748347,2425.2,2425.1,0.82441]
[1751388464620,1.00748347,2425.2,2425.1,0.82442]
[1751388464918,0.82439,2425.2,2425.1,0.82441]
[1751388465118,0.82439,2425.2,2425.0,0.82443]
[1751388465319,0.82438,2425.3,2425.2,0.82439]
[1751388465523,7.20364691,2425.5,2425.2,0.82439]
[1751388465716,1.006995,2425.4,2425.1,0.8244]
[1751388465918,3.04722705,2425.3,2425.2,0.82439]
[1751388466117,3.87159705,2425.3,2425.1,0.8244]
[1751388466319,3.04722705,2425.3,2425.0,1.431]
[1751388466521,25.93235,2425.4,2425.2,0.82437]
[1751388466722,25.93233,2425.4,2425.2,0.82437]
[1751388466923,0.82435,2425.3,2425.1,0.8244]
[1751388467424,0.82435,2425.3,2425.2,1.51179]
[1751388468224,25.93235,2425.4,2425.2,1.51179]
[1751388468427,0.82435,2425.3,2425.2,1.51179]
[1751388468619,25.93235,2425.4,2425.3,0.82435]
[1751388468819,0.82435,2425.3,2425.2,1.51176]
[1751388469020,3.87157705,2425.3,2425.2,0.6874]
[1751388469926,0.82442,2425.1,2425.0,1.431]
[1751388470124,0.82442,2425.1,2424.9,2.20027]
[1751388470125,3.87166705,2425.1,2424.9,2.20027]
[1751388470323,0.82446,2425.0,2424.9,2.20027]
[1751388470521,3.87166705,2425.1,2425.0,0.82446]
[1751388471521,3.87166705,2425.1,2424.9,2.20026]
[1751388471719,0.82446,2425.0,2424.9,2.20026]
[1751388472725,0.82446,2425.0,2424.9,1.51846]
[1751388472928,3.77462705,2425.3,2424.9,0.694]
[1751388473128,1.00579555,2425.2,2424.9,0.694]
[1751388473327,3.87158705,2425.3,2425.2,0.82439]
[1751388473529,4.87746367,2425.3,2425.2,0.82439]
[1751388473829,4.05310367,2425.3,2425.2,0.82439]
[1751388474018,4.87745367,2425.3,2425.2,0.82439]
[1751388474423,4.05310367,2425.3,2425.2,0.82439]
[1751388474627,4.87745367,2425.3,2425.2,0.82439]
[1751388475422,4.05310367,2425.3,2425.2,0.82439]
[1751388476224,4.87745367,2425.3,2425.2,0.82439]
[1751388477425,4.05310367,2425.3,2425.2,0.82439]
[1751388477729,1.00587662,2425.3,2425.2,0.82439]
[1751388477929,0.82427,2425.6,2425.5,0.82426]
[1751388478227,1.83033042,2425.6,2425.5,0.82426]
[1751388479018,1.83031042,2425.6,2425.5,0.82426]
[1751388479219,1.00606042,2425.6,2425.5,0.82426]
[1751388480225,3.29003374,2426.4,2425.7,2.06055]
[1751388480423,4.11254217,2426.7,2426.1,0.82406]
[1751388480424,3.87126705,2426.3,2426.1,0.82406]
[1751388480623,3.04722705,2426.3,2426.2,0.82405]
[1751388481530,0.728,2426.4,2426.3,0.82402]
[1751388481722,1.55198,2426.4,2426.3,0.82402]
[1751388481922,0.728,2426.4,2426.3,0.82402]
[1751388482322,25.12,2426.5,2426.1,3.04722705]
[1751388482527,0.82395,2426.5,2426.3,0.82399]
[1751388482729,0.824,2426.4,2426.3,0.82401]
[1751388483125,0.82399,2426.4,2426.3,0.824]
[1751388483426,0.82401,2426.3,2426.2,1.53772]
[1751388484023,0.82401,2426.3,2426.2,0.7137]
[1751388484428,5.84553419,2426.4,2426.0,0.6638]
[1751388484633,0.82407,2426.2,2425.9,0.7192]
[1751388485029,0.82407,2426.2,2426.0,0.8241]
[1751388485531,2.06005,2426.3,2425.9,0.7192]
[1751388485732,0.8241,2426.1,2426.0,0.8241]
[1751388486129,7.28143419,2426.4,2425.9,0.7192]
[1751388486327,3.29003374,2427.3,2426.4,2.05996]
[1751388486632,13.94121,2428.1,2426.4,2.05996]
[1751388486633,3.29003374,2427.9,2427.3,2.05919]
[1751388486925,3.29003374,2427.9,2427.1,2.05931]
[1751388486926,3.29003374,2428.2,2428.1,0.8234]
[1751388487126,6.81354217,2428.4,2427.8,5.84553419]
[1751388487127,3.29003374,2428.4,2427.8,5.84553419]
[1751388487329,3.29003374,2428.4,2427.9,1.4235]
[1751388487831,3.29003374,2428.5,2427.9,2.24696]
[1751388488031,3.29003374,2428.5,2428.1,5.84553419]
[1751388488336,0.82324,2428.6,2428.2,2.24685]
[1751388488627,0.8233,2428.4,2428.3,1.4235]
[1751388488831,0.82327,2428.5,2428.3,1.4235]
[1751388489036,0.8233,2428.4,2428.3,1.4235]
[1751388489635,7.90352419,2428.8,2428.0,0.7174]
[1751388489827,9.34342419,2428.8,2428.1,1.4092]
[1751388490027,0.82335,2428.3,2428.1,1.4092]
[1751388490329,0.82337,2428.2,2428.1,1.4092]
[1751388490727,0.82341,2428.1,2428.0,0.7174]
[1751388490928,0.82349,2427.9,2427.6,8.07829419]
[1751388491130,0.82354,2427.7,2427.6,2.0647]
[1751388491328,0.82357,2427.6,2427.5,0.7066]
[1751388491626,4.22086,2428.1,2427.5,0.7066]
[1751388491830,0.82355,2427.7,2427.5,2.1158]
[1751388492031,0.82355,2427.7,2427.5,2.93939]
[1751388492235,0.82353,2427.8,2427.6,0.82356]
[1751388492436,0.82354,2427.7,2427.6,1.3428]
[1751388492736,0.82353,2427.8,2427.6,2.16636]
[1751388493339,0.82354,2427.7,2427.6,1.3428]
[1751388493732,0.82349,2427.9,2427.7,0.82354]
[1751388494035,0.82347,2428.0,2427.8,0.8235]
[1751388494236,0.82351,2427.8,2427.7,1.54022]
[1751388494434,0.82351,2427.8,2427.7,0.7167]
[1751388495337,2.05857,2428.1,2427.7,0.7167]
[1751388495338,3.49308,2428.2,2427.7,0.7167]
[1751388495533,2.05839,2428.3,2427.8,0.82349]
[1751388495737,1.3944,2428.6,2428.1,0.82339]
[1751388495934,2.05819,2428.5,2428.0,6.66896419]
[1751388496128,0.8234,2428.2,2428.1,1.3615]
[1751388496438,0.82348,2427.9,2427.8,6.66902419]
[1751388496638,0.82346,2428.0,2427.9,0.82348]
[1751388496837,0.82346,2428.0,2427.9,1.3615]
[1751388497138,0.82346,2428.0,2427.9,2.18498]
[1751388497739,0.82346,2428.0,2427.9,1.3615]
[1751388499436,0.82346,2428.0,2427.9,2.18498]
[1751388499739,0.82342,2428.1,2428.0,0.82342]
[1751388499938,0.82342,2428.1,2428.0,2.15232]
[1751388500338,0.82342,2428.1,2428.0,1.3289]
[1751388500637,0.82336,2428.3,2428.2,0.82336]
[1751388501028,0.82338,2428.2,2428.1,6.66892419]
[1751388501937,0.82336,2428.3,2428.2,0.82335]
[1751388502238,0.82331,2428.5,2428.4,0.82329]
[1751388504327,0.82334,2428.4,2428.3,0.82332]
[1751388504533,0.8233,2428.5,2428.4,0.82328]
[1751388505841,0.82323,2428.7,2428.6,0.8232]
[1751388506140,0.82321,2428.7,2428.6,0.8232]
[1751388507543,0.82327,2428.5,2428.4,6.66881419]
[1751388508436,0.82327,2428.6,2428.5,0.82324]
[1751388509441,0.82327,2428.5,2428.4,6.66881419]
[1751388510343,2.05795,2428.8,2428.4,6.66881419]
[1751388510344,0.82326,2428.6,2428.5,0.82322]
[1751388510540,0.82323,2428.7,2428.6,0.8232]
[1751388510938,0.82327,2428.6,2428.5,0.82325]
[1751388511437,0.82323,2428.7,2428.6,0.8232]
[1751388511740,0.82327,2428.6,2428.5,0.82325]
[1751388512141,0.82323,2428.7,2428.6,0.82319]
[1751388512337,0.82323,2428.7,2428.4,7.90377419]
[1751388512338,0.8232,2428.8,2428.7,0.82317]
[1751388512543,0.82316,2429.0,2428.9,0.82311]
[1751388512740,0.67,2429.1,2428.8,0.82314]
[1751388512741,0.82317,2428.9,2428.8,0.82314]
[1751388512936,0.82317,2428.9,2428.8,1.49604]
[1751388513145,0.82313,2429.0,2428.9,0.8231]
[1751388513444,2.0576,2429.2,2428.8,0.6729]
[1751388513642,2.0576,2429.2,2428.9,0.82311]
[1751388513643,0.82314,2429.0,2428.9,0.82311]
[1751388514037,0.8231,2429.1,2429.0,0.82306]
[1751388514945,0.82314,2429.0,2428.9,0.8231]
[1751388516343,0.8231,2429.1,2429.0,0.82306]
[1751388516540,2.75385,2429.4,2429.0,5.84553419]
[1751388516744,0.82305,2429.3,2429.2,0.82301]
[1751388517648,0.82298,2429.4,2429.3,0.823]
[1751388517844,1.48701,2429.7,2429.6,0.8229]
[1751388518145,0.82294,2429.6,2429.5,0.82293]
[1751388518345,0.82294,2429.5,2429.4,1.53514]
[1751388519344,0.82294,2429.5,2429.4,0.7122]
[1751388519544,0.82294,2429.5,2429.4,1.53517]
[1751388519745,0.82294,2429.5,2429.4,0.7122]
[1751388520348,0.823,2429.3,2429.2,1.50283]
[1751388520750,0.823,2429.4,2429.3,0.82296]
[1751388522454,0.82301,2429.3,2429.2,1.48042]
[1751388522648,5.84553419,2429.6,2428.6,54.94585422]
[1751388522844,2.05773,2429.1,2428.6,14.14585422]
[1751388523049,0.82317,2428.9,2428.8,0.82313]
[1751388523253,0.82321,2428.7,2428.6,13.86562]
[1751388523453,0.82319,2428.8,2428.7,0.82318]
[1751388523847,2.05769,2429.1,2428.8,0.82313]
[1751388523848,0.82317,2428.9,2428.8,0.82313]
[1751388525049,2.05795,2428.8,2428.5,1.3809]
[1751388525248,2.05803,2428.7,2428.3,2.44785422]
[1751388525452,0.82333,2428.4,2428.3,0.82332]
[1751388526055,0.8233,2428.5,2428.4,0.82328]
[1751388526855,0.82334,2428.4,2428.3,0.82332]
[1751388527352,0.82334,2428.3,2428.2,1.48246]
[1751388527654,0.82334,2428.4,2428.3,0.82332]
[1751388527856,0.82334,2428.3,2428.2,1.48245]
[1751388528046,0.82333,2428.4,2428.3,0.82332]
[1751388528354,0.82334,2428.3,2428.2,1.48245]
[1751388528750,0.82334,2428.4,2428.3,0.82332]
[1751388528952,0.82341,2428.2,2428.1,0.82339]
[1751388529256,0.82344,2428.1,2428.0,0.82342]
[1751388529453,0.8234,2428.2,2428.1,0.82338]
[1751388531044,0.82337,2428.3,2428.2,0.82335]
[1751388531245,0.82334,2428.4,2428.3,0.82331]
[1751388531649,0.82338,2428.3,2428.2,0.82336]
[1751388532753,0.82341,2428.2,2428.1,0.82339]
[1751388533457,0.82336,2428.3,2428.2,0.82335]
[1751388534760,2.14814,2428.4,2428.3,0.82335]
[1751388535059,0.7162,2428.6,2428.4,0.82329]
[1751388535259,0.82336,2428.3,2428.1,1.3851]
[1751388535461,0.82336,2428.3,2428.2,0.82337]
[1751388535662,2.77432,2428.6,2428.0,5.84553419]
[1751388535663,0.82334,2428.4,2428.3,0.82332]
[1751388536163,0.8233,2428.5,2428.4,0.82329]
[1751388536461,0.82335,2428.4,2428.3,0.82332]
[1751388537561,0.82338,2428.3,2428.2,0.82335]
[1751388539058,0.82334,2428.4,2428.3,0.82329]
[1751388540064,4.12094,2428.6,2428.0,7.90416419]
[1751388540267,0.8234,2428.3,2428.2,0.82335]
[1751388541564,0.8234,2428.3,2428.0,0.82341]
[1751388541565,0.82345,2428.1,2428.0,0.82341]
[1751388545070,1.4858,2428.3,2428.1,0.82338]
[1751388545071,0.82341,2428.2,2428.1,0.82338]
[1751388545971,0.82345,2428.1,2428.0,0.82342]
[1751388548477,0.82355,2427.8,2427.7,0.82351]
[1751388549471,0.82358,2427.7,2427.6,0.82356]
[1751388551081,0.82353,2427.9,2427.8,0.82352]
[1751388552982,9.13556793,2429.0,2427.7,5.84553419]
[1751388553176,0.82344,2428.1,2428.0,0.82341]
[1751388554383,0.82341,2428.2,2428.1,0.82341]
[1751388555876,0.82341,2428.2,2427.9,4.15131]
[1751388555877,1.53355,2428.4,2428.0,7.90413419]
[1751388556077,0.82335,2428.4,2428.3,0.82335]
[1751388556380,0.82335,2428.4,2428.1,0.8234]
[1751388556381,0.82338,2428.2,2428.1,0.8234]
[1751388556587,0.82345,2428.1,2428.0,0.82342]
[1751388558786,0.82345,2428.0,2427.9,0.82345]
[1751388558987,0.82344,2428.1,2428.0,0.8234]
[1751388561191,0.82348,2428.0,2427.9,0.82347]
[1751388561686,0.82345,2428.1,2428.0,0.8234]
[1751388562890,1.53358,2428.3,2428.2,0.82338]
[1751388563089,0.82338,2428.3,2428.2,3.8632276]
[1751388563890,0.82338,2428.3,2428.2,0.82338]
[1751388564085,0.82334,2428.4,2428.3,0.82331]
[1751388565288,0.7276,2428.5,2427.9,1.63108935]
[1751388565481,0.82345,2428.0,2427.9,0.82345]
[1751388566593,0.82341,2428.2,2428.1,0.82337]
[1751388566891,0.82341,2428.2,2427.7,2.33778935]
[1751388566892,0.7276,2428.5,2428.0,2.05857]
[1751388567087,0.82338,2428.3,2428.2,0.82335]
[1751388569595,0.82334,2428.4,2428.3,0.82331]
[1751388570488,1.51448,2428.6,2428.5,0.82328]
[1751388570895,0.6912,2428.6,2428.5,0.82328]
[1751388571296,1.51445,2428.6,2428.5,0.82328]
[1751388573496,0.82328,2428.6,2428.5,0.82326]
[1751388574094,1.48623,2428.7,2428.6,0.82325]
[1751388574595,0.8233,2428.5,2428.4,0.82327]
[1751388575599,0.82326,2428.6,2428.5,0.82325]
[1751388578497,2.72107,2428.7,2428.3,1.319]
[1751388578704,0.82331,2428.4,2428.3,2.14233]
[1751388579604,0.82331,2428.5,2428.4,0.82327]